bitfinex/quotes_SOLUSD_20241122
["timestamp","ask_amount","ask_price","bid_price","bid_amount"]
[1732240994090,18.49953273,255.6,255.59,28.85409023]
[1732240994591,18.49953273,255.6,255.59,23.776884]
[1732240995173,18.49953273,255.6,255.59,33.70919473]
[1732240995388,18.49953273,255.6,255.59,28.6319885]
[1732240996176,18.49953273,255.6,255.59,33.70919473]
[1732240997075,18.49953273,255.6,255.59,23.776884]
[1732240998385,18.49953273,255.6,255.59,33.70919473]
[1732240999095,18.49953273,255.6,255.59,40.12119473]
[1732240999301,15.01233273,255.6,255.59,40.12119473]
[1732240999504,12.08233273,255.6,255.59,42.62119473]
[1732240999875,10.45233273,255.6,255.59,42.62119473]
[1732241000080,10.45233273,255.6,255.59,38.70919473]
[1732241000280,10.45233273,255.6,255.59,55.64570401]
[1732241000605,10.45233273,255.6,255.59,53.14570401]
[1732241001399,10.45233273,255.6,255.59,55.64570401]
[1732241001707,10.45233273,255.6,255.59,53.14570401]
[1732241001907,1e-08,255.6,255.59,53.14570401]
[1732241002402,1e-08,255.6,255.59,55.64570401]
[1732241002903,136.9,255.76,255.59,55.64570401]
[1732241003104,136.9,255.75,255.72,15.52450928]
[1732241003302,136.9,255.74,255.72,15.52450928]
[1732241003801,136.9,255.74,255.6,13.84431073]
[1732241004008,136.9,255.73,255.61,23.776884]
[1732241004300,136.9,255.73,255.63,23.776884]
[1732241008711,136.9,255.72,255.63,23.776884]
[1732241009611,136.9,255.72,255.65,23.776884]
[1732241010203,136.9,255.72,255.66,9.93231073]
[1732241010413,136.9,255.71,255.67,23.776884]
[1732241010991,136.9,255.76,255.67,23.776884]
[1732241011614,136.9,255.76,255.69,23.776884]
[1732241012114,54.46734121,255.91,255.81,23.776884]
[1732241012311,15.4739565,256.05,255.82,17.42785069]
[1732241012312,54.46734121,256.04,255.82,17.42785069]
[1732241012516,54.46734121,256.03,255.85,23.776884]
[1732241012689,54.46734121,256.03,255.87,23.776884]
[1732241012886,54.46734121,256.03,255.89,23.776884]
[1732241013222,54.46734121,256.02,255.91,23.776884]
[1732241013403,54.46734121,256.01,255.93,23.776884]
[1732241013600,54.46734121,256.01,255.95,23.776884]
[1732241013802,54.46734121,256.0,255.95,30.15596969]
[1732241014003,54.46734121,256.0,255.97,23.776884]
[1732241014426,54.46734121,256.0,255.96,23.776884]
[1732241014625,54.46734121,256.0,255.98,23.776884]
[1732241016706,54.46734121,256.0,255.95,11.048765]
[1732241016707,54.46734121,256.0,255.96,23.776884]
[1732241017505,25.4845565,256.09,255.96,23.776884]
[1732241017506,54.46734121,255.99,255.96,23.776884]
[1732241017830,54.46734121,255.98,255.87,11.048765]
[1732241018007,54.46734121,255.97,255.87,11.048765]
[1732241018329,54.46734121,255.97,255.87,16.79229513]
[1732241018525,54.46734121,255.97,255.84,32.04649089]
[1732241018526,54.46734121,255.97,255.88,16.79229513]
[1732241019422,54.46734121,255.97,255.89,23.776884]
[1732241019623,15.4739565,256.08,255.89,23.776884]
[1732241019624,54.46734121,256.07,255.91,23.776884]
[1732241019810,54.46734121,256.06,255.92,16.79229513]
[1732241020011,54.46734121,256.06,255.93,23.776884]
[1732241020212,54.46734121,256.06,255.94,11.048765]
[1732241020620,54.46734121,256.06,255.95,23.776884]
[1732241021113,54.46734121,256.06,255.95,11.048765]
[1732241021312,54.46734121,256.06,255.96,11.048765]
[1732241021533,54.46734121,256.06,255.97,23.776884]
[1732241021724,54.46734121,256.05,255.97,23.776884]
[1732241022731,54.46734121,256.04,255.97,23.776884]
[1732241022933,54.46734121,256.03,255.97,23.776884]
[1732241025736,54.46734121,256.03,255.93,23.776884]
[1732241025913,54.46734121,256.02,255.93,23.776884]
[1732241026115,80.55394121,256.01,255.92,5.74353013]
[1732241026339,69.94129771,256.0,255.85,5.74353013]
[1732241026537,25.6582565,255.98,255.85,5.74353013]
[1732241026920,54.46734121,255.97,255.85,5.74353013]
[1732241027818,54.46734121,255.96,255.85,5.74353013]
[1732241029336,54.46734121,255.95,255.86,23.776884]
[1732241029521,54.46734121,255.95,255.86,29.52041413]
[1732241029719,54.46734121,255.95,255.87,5.74353013]
[1732241030132,54.46734121,255.95,255.88,23.776884]
[1732241031139,54.46734121,255.95,255.88,29.52041413]
[1732241032521,30.0,255.98,255.88,29.52041413]
[1732241032522,54.46734121,255.97,255.88,29.52041413]
[1732241032920,54.46734121,255.96,255.88,29.52041413]
[1732241033136,54.46734121,255.97,255.9,23.776884]
[1732241033333,54.46734121,255.97,255.9,29.52041413]
[1732241033528,54.46734121,255.97,255.91,5.74353013]
[1732241033840,30.0,255.98,255.92,23.776884]
[1732241034424,30.0,255.98,255.92,29.52041413]
[1732241035639,30.0,255.98,255.89,2.5]
[1732241035640,30.0,255.98,255.94,23.776884]
[1732241035853,30.0,255.98,255.94,29.52041413]
[1732241036648,30.0,255.98,255.96,23.776884]
[1732241040722,30.0,255.98,255.96,5.74353013]
[1732241041150,30.0,255.98,255.97,23.776884]
[1732241041533,30.0,255.98,255.97,5.74353013]
[1732241041730,54.46734121,256.22,256.06,2.5]
[1732241042051,54.46734121,256.25,256.1,23.776884]
[1732241042244,54.46734121,256.25,256.12,23.776884]
[1732241042427,54.46734121,256.24,256.13,12.52050276]
[1732241042627,54.46734121,256.24,256.14,23.776884]
[1732241042853,54.46734121,256.24,256.16,23.776884]
[1732241043029,54.46734121,256.24,256.17,6.03241902]
[1732241043238,54.46734121,256.25,256.18,23.776884]
[1732241043555,54.46734121,256.24,256.18,29.80930302]
[1732241047547,54.46734121,256.25,256.18,29.80930302]
[1732241047862,54.46734121,256.25,256.19,5.05314056]
[1732241048042,54.46734121,256.25,256.2,23.776884]
[1732241050272,54.46734121,256.24,256.16,3.896]
[1732241050464,54.46734121,256.23,256.15,6.48808374]
[1732241051554,54.46734121,256.23,256.13,5.96169336]
[1732241052169,54.46734121,256.23,256.14,6.48808374]
[1732241052353,54.46734121,256.23,256.15,29.73857736]
[1732241053582,54.46734121,256.25,256.15,29.73857736]
[1732241053953,54.46734121,256.25,256.17,23.776884]
[1732241054357,54.46734121,256.25,256.15,29.73857736]
[1732241054553,54.46734121,256.25,256.15,36.2266611]
[1732241054762,54.46734121,256.25,256.16,6.48808374]
[1732241054959,54.46734121,256.25,256.17,29.73857736]
[1732241055166,54.46734121,256.25,256.17,36.2266611]
[1732241056354,54.46734121,256.31,256.19,23.776884]
[1732241056675,54.46734121,256.31,256.19,29.73857736]
[1732241057473,54.46734121,256.31,256.2,5.96169336]
[1732241057772,26.0866,256.35,256.21,32.76496774]
[1732241057773,54.46734121,256.35,256.21,32.76496774]
[1732241057982,10.7345,256.39,256.24,23.776884]
[1732241057983,54.46734121,256.38,256.24,23.776884]
[1732241058160,54.46734121,256.37,256.26,23.776884]
[1732241058370,43.3104565,256.44,256.23,2.5]
[1732241058371,54.46734121,256.43,256.28,23.776884]
[1732241058572,54.46734121,256.42,256.28,23.776884]
[1732241058985,15.4739565,256.4,256.28,23.776884]
[1732241062679,54.46734121,256.39,256.28,23.776884]
[1732241062892,54.46734121,256.38,256.28,23.776884]
[1732241063265,54.46734121,256.37,256.28,23.776884]
[1732241063469,54.46734121,256.36,256.28,23.776884]
[1732241066401,53.96734121,256.36,256.28,23.776884]
[1732241067509,53.96734121,256.36,256.29,23.776884]
[1732241067876,53.96734121,256.35,256.29,23.776884]
[1732241068081,53.96734121,256.35,256.3,23.776884]
[1732241069601,15.4739565,256.42,256.3,23.776884]
[1732241070292,53.96734121,256.41,256.3,29.73857736]
[1732241071893,53.96734121,256.4,256.3,29.73857736]
[1732241073198,53.96734121,256.4,256.32,23.776884]
[1732241074807,53.96734121,256.43,256.32,30.26496774]
[1732241075006,53.96734121,256.42,256.34,23.776884]
[1732241075303,53.96734121,256.47,256.36,23.776884]
[1732241075486,53.96734121,256.47,256.37,5.96169336]
[1732241075990,53.96734121,256.47,256.38,23.776884]
[1732241076303,53.96734121,256.46,256.4,23.776884]
[1732241076512,53.96734121,256.51,256.4,36.2266611]
[1732241076713,53.96734121,256.52,256.42,23.776884]
[1732241076884,53.96734121,256.52,256.42,29.73857736]
[1732241077086,53.96734121,256.52,256.43,5.96169336]
[1732241077299,53.96734121,256.52,256.44,23.776884]
[1732241077608,53.96734121,256.55,256.44,23.776884]
[1732241078183,53.96734121,256.55,256.45,23.776884]
[1732241078709,53.96734121,256.55,256.45,5.96169336]
[1732241078911,53.96734121,256.54,256.46,23.776884]
[1732241079205,53.96734121,256.59,256.46,29.73857736]
[1732241079383,53.96734121,256.58,256.46,29.73857736]
[1732241079584,53.96734121,256.57,256.47,5.96169336]
[1732241079786,53.96734121,256.56,256.48,23.776884]
[1732241080005,53.96734121,256.59,256.48,23.776884]
[1732241080602,53.96734121,256.58,256.48,23.776884]
[1732241081006,53.96734121,256.57,256.48,23.776884]
[1732241083020,53.96734121,256.56,256.48,23.776884]
[1732241083314,53.96734121,256.62,256.51,3.896]
[1732241083521,53.96734121,256.62,256.52,29.48500513]
[1732241083696,53.96734121,256.68,256.54,23.776884]
[1732241083894,53.96734121,256.67,256.54,23.776884]
[1732241085304,53.96734121,256.66,256.55,3.896]
[1732241085502,15.4739565,256.72,256.56,23.776884]
[1732241085714,53.96734121,256.71,256.56,29.48500513]
[1732241086608,53.96734121,256.71,256.57,5.70812113]
[1732241086919,53.96734121,256.71,256.58,23.776884]
[1732241088205,53.96734121,256.72,256.58,29.48500513]
[1732241088401,15.4739565,256.73,256.6,23.776884]
[1732241088621,69.44129771,256.75,256.6,29.48500513]
[1732241088925,53.96734121,256.74,256.6,29.48500513]
[1732241089122,53.96734121,256.73,256.6,29.48500513]
[1732241089300,53.96734121,256.75,256.61,2.5]
[1732241089502,53.96734121,256.75,256.62,23.776884]
[1732241089701,53.96734121,256.75,256.6,29.48500513]
[1732241089909,15.4739565,256.74,256.6,29.48500513]
[1732241090304,53.96734121,256.73,256.6,29.48500513]
[1732241090626,53.96734121,256.76,256.62,23.776884]
[1732241090803,69.44129771,256.76,256.62,23.776884]
[1732241091012,15.4739565,256.74,256.62,23.776884]
[1732241091406,15.4739565,256.74,256.62,29.48500513]
[1732241092004,53.96734121,256.76,256.65,37.8629]
[1732241092231,53.96734121,256.76,256.66,23.776884]
[1732241092429,53.96734121,256.76,256.66,29.48500513]
[1732241094605,15.4739565,256.77,256.66,29.48500513]
[1732241094806,15.4739565,256.79,256.66,29.48500513]
[1732241095112,136.9,256.78,256.66,29.48500513]
[1732241096215,136.9,256.77,256.66,29.48500513]
[1732241096428,136.9,256.82,256.66,35.65531109]
[1732241096636,136.9,256.81,256.67,6.17030596]
[1732241096927,136.9,256.8,256.68,29.48500513]
[1732241097133,136.9,256.81,256.69,6.17030596]
[1732241097313,136.9,256.8,256.7,29.48500513]
[1732241097521,136.9,256.81,256.7,29.48500513]
[1732241097716,136.9,256.8,256.7,29.48500513]
[1732241097921,136.9,256.89,256.72,23.776884]
[1732241098130,40.7046,256.9,256.74,23.776884]
[1732241098131,152.3739565,256.88,256.74,23.776884]
[1732241098313,136.9,256.87,256.74,29.48500513]
[1732241098511,136.9,256.86,256.76,23.776884]
[1732241098714,136.9,256.87,256.76,23.776884]
[1732241099238,136.9,256.87,256.76,29.48500513]
[1732241100436,15.4739565,256.86,256.76,29.48500513]
[1732241101025,136.9,256.87,256.78,23.776884]
[1732241101235,15.4739565,256.84,256.77,5.70812113]
[1732241101419,15.4739565,256.84,256.72,6.17030596]
[1732241101420,15.4739565,256.8,256.67,5.70812113]
[1732241101736,15.4739565,256.8,256.67,11.9581631]
[1732241101913,15.4739565,256.8,256.68,5.70812113]
[1732241102422,140.793,256.87,256.68,11.87842709]
[1732241102627,15.4739565,256.81,256.68,11.87842709]
[1732241103221,136.9,256.85,256.68,11.87842709]
[1732241103222,15.4739565,256.79,256.68,11.87842709]
[1732241103425,15.4739565,256.81,256.68,5.70812113]
[1732241104545,15.4739565,256.81,256.69,23.776884]
[1732241104840,15.4739565,256.81,256.68,5.70812113]
[1732241104841,15.4739565,256.81,256.7,5.70812113]
[1732241105034,15.4739565,256.77,256.7,5.70812113]
[1732241105921,15.4739565,256.75,256.65,26.6592]
[1732241106339,15.4739565,256.73,256.59,29.233]
[1732241107023,152.3739565,256.73,256.59,34.16892113]
[1732241107429,15.4739565,256.69,256.59,34.16892113]
[1732241107625,15.4739565,256.67,256.59,4.93592113]
[1732241107941,136.9,256.66,256.59,4.93592113]
[1732241109234,136.9,256.66,256.53,29.233]
[1732241109433,15.4739565,256.68,256.53,29.233]
[1732241109434,136.9,256.67,256.53,34.16892113]
[1732241109948,15.4739565,256.66,256.53,34.16892113]
[1732241110247,136.9,256.67,256.53,34.16892113]
[1732241110739,15.4739565,256.66,256.53,34.16892113]
[1732241110957,15.4739565,256.62,256.53,29.233]
[1732241111134,15.4739565,256.62,256.47,35.7936249]
[1732241111329,15.4739565,256.6,256.47,29.233]
[1732241111532,15.4739565,256.58,256.47,29.233]
[1732241111941,136.9,256.57,256.47,29.233]
[1732241112142,136.9,256.57,256.47,35.06793635]
[1732241112355,136.9,256.57,256.48,4.93592113]
[1732241112548,136.9,256.65,256.48,10.18611598]
[1732241112728,136.9,256.65,256.5,23.776884]
[1732241113054,136.9,256.65,256.52,23.776884]
[1732241113263,15.4739565,256.63,256.52,23.776884]
[1732241113760,15.4739565,256.63,256.47,27.94580513]
[1732241115031,136.9,256.65,256.48,10.77075045]
[1732241115235,152.3739565,256.65,256.48,10.18611598]
[1732241115431,136.9,256.65,256.48,12.68611598]
[1732241115631,136.9,256.65,256.49,0.5845567]
[1732241115862,136.9,256.65,256.5,10.18611598]
[1732241116666,15.4739565,256.67,256.51,23.776884]
[1732241116961,15.4739565,256.67,256.52,4.93592113]
[1732241119251,15.4739565,256.67,256.53,23.776884]
[1732241119762,15.4739565,256.67,256.51,23.776884]
[1732241119971,152.3739565,256.69,256.51,23.776884]
[1732241121139,152.3739565,256.69,256.52,10.8178]
[1732241121340,28.2929,256.78,256.52,10.8178]
[1732241121341,152.3739565,256.73,256.55,23.776884]
[1732241121556,136.9,256.72,256.55,23.776884]
[1732241121865,136.9,256.72,256.55,24.36133122]
[1732241123261,15.4739565,256.71,256.55,23.776884]
[1732241124555,136.9,256.72,256.57,23.776884]
[1732241124753,15.4739565,256.75,256.57,23.776884]
[1732241124940,15.4739565,256.75,256.59,23.776884]
[1732241125358,136.9,256.77,256.61,23.776884]
[1732241125359,136.9,256.76,256.61,23.776884]
[1732241125676,15.4739565,256.79,256.63,23.776884]
[1732241127061,136.9,256.82,256.63,29.61128518]
[1732241127266,15.4739565,256.83,256.65,23.776884]
[1732241127461,15.4739565,256.85,256.68,11.7179]
[1732241127648,15.4739565,256.85,256.69,23.776884]
[1732241128149,15.4739565,256.85,256.71,23.776884]
[1732241128945,15.4739565,256.87,256.73,23.776884]
[1732241129869,15.4739565,256.89,256.73,23.776884]
[1732241130071,15.4739565,256.89,256.72,23.776884]
[1732241130267,15.4739565,256.89,256.73,0.58394799]
[1732241130567,15.4739565,256.91,256.74,23.776884]
[1732241131350,15.4739565,256.89,256.74,23.776884]
[1732241131648,15.4739565,256.87,256.72,23.776884]
[1732241132376,15.4739565,256.85,256.71,6.38131387]
[1732241132557,15.4739565,256.83,256.7,28.6826]
[1732241134053,15.4739565,256.83,256.72,23.776884]
[1732241135553,15.4739565,256.83,256.71,23.776884]
[1732241136182,6.3922,256.92,256.71,23.776884]
[1732241136383,15.4739565,256.86,256.71,23.776884]
[1732241136587,15.4739565,256.84,256.71,23.776884]
[1732241137253,15.4739565,256.78,256.7,28.6826]
[1732241137873,136.9,256.82,256.7,28.6826]
[1732241138075,15.4739565,256.8,256.7,28.6826]
[1732241139258,15.4739565,256.76,256.68,11.7179]
[1732241140373,15.4739565,256.78,256.68,11.7179]
[1732241140560,136.9,256.79,256.69,23.776884]
[1732241142490,15.4739565,256.78,256.68,11.7179]
[1732241143075,152.3739565,256.78,256.68,11.7179]
[1732241144783,15.4739565,256.71,256.56,27.5903]
[1732241144975,15.4739565,256.69,256.56,27.5903]
[1732241145893,15.4739565,256.67,256.56,27.5903]
[1732241146684,15.4739565,256.65,256.56,27.5903]
[1732241146874,15.4739565,256.63,256.51,9.91344411]
[1732241147073,15.4739565,256.61,256.5,27.5903]
[1732241147892,15.4739565,256.59,256.5,27.5903]
[1732241148082,136.9,256.6,256.5,27.5903]
[1732241149395,136.9,256.6,256.51,23.776884]
[1732241149995,136.9,256.6,256.5,27.5903]
[1732241151081,136.9,256.6,256.51,23.776884]
[1732241152778,15.4739565,256.63,256.51,23.776884]
[1732241153602,15.4739565,256.63,256.5,27.5903]
[1732241154101,15.4739565,256.63,256.51,3.896]
[1732241154700,15.4739565,256.63,256.5,27.5903]
[1732241155800,152.3739565,256.63,256.5,27.5903]
[1732241156308,15.4739565,256.61,256.5,27.5903]
[1732241157186,152.3739565,256.63,256.5,27.5903]
[1732241159490,136.9,256.63,256.51,23.776884]
[1732241159690,136.9,256.63,256.53,23.776884]
[1732241159905,15.4739565,256.69,256.53,23.776884]
[1732241160107,136.9,256.68,256.53,23.776884]
[1732241160506,15.4739565,256.65,256.53,23.776884]
[1732241160706,15.4739565,256.67,256.53,23.776884]
[1732241161514,15.4739565,256.71,256.53,23.776884]
[1732241162590,30.2503,256.75,256.55,23.776884]
[1732241162591,15.4739565,256.73,256.55,23.776884]
[1732241162792,136.9,256.73,256.55,32.92307885]
[1732241162997,136.9,256.73,256.58,23.776884]
[1732241164590,6.35655079,256.87,256.58,23.776884]
[1732241164591,136.9,256.81,256.6,38.7876]
[1732241164795,15.4739565,256.83,256.63,23.776884]
[1732241165003,15.4739565,256.81,256.63,23.776884]
[1732241165221,15.4739565,256.81,256.62,23.776884]
[1732241165807,15.4739565,256.79,256.62,23.776884]
[1732241166011,15.4739565,256.77,256.62,23.776884]
[1732241166226,15.4739565,256.75,256.62,23.776884]
[1732241166408,152.3739565,256.75,256.61,23.776884]
[1732241167016,29.8073,256.81,256.61,32.11144429]
[1732241167189,45.2812565,256.81,256.61,36.77469355]
[1732241167396,15.4739565,256.83,256.63,23.776884]
[1732241167614,15.4739565,256.85,256.65,23.776884]
[1732241167815,136.9,256.84,256.65,33.69032811]
[1732241167990,136.9,256.84,256.65,32.71445178]
[1732241168192,136.9,256.84,256.67,27.991]
[1732241168398,15.4739565,256.87,256.69,10.7966]
[1732241168808,15.4739565,256.83,256.69,10.7966]
[1732241170016,15.4739565,256.83,256.7,23.776884]
[1732241170817,15.4739565,256.79,256.69,10.7966]
[1732241171023,15.4739565,256.77,256.67,27.991]
[1732241171513,15.4739565,256.77,256.63,10.9729]
[1732241171716,15.4739565,256.72,256.6,27.168]
[1732241172298,15.4739565,256.74,256.6,27.168]
[1732241172516,136.9,256.75,256.6,32.41819485]
[1732241172993,152.3739565,256.75,256.6,32.41819485]
[1732241173604,152.3739565,256.75,256.61,23.776884]
[1732241174014,15.4739565,256.75,256.61,23.776884]
[1732241175927,15.4739565,256.73,256.61,23.776884]
[1732241176302,15.4739565,256.71,256.61,23.776884]
[1732241176497,15.4739565,256.76,256.61,23.776884]
[1732241178124,136.9,256.79,256.61,23.776884]
[1732241178420,15.4739565,256.82,256.63,23.776884]
[1732241178632,15.4739565,256.79,256.63,23.776884]
[1732241178834,15.4739565,256.76,256.63,23.776884]
[1732241180721,15.4739565,256.76,256.62,20.88634411]
[1732241181022,136.9,256.75,256.62,15.63614926]
[1732241182017,136.9,256.75,256.63,23.776884]
[1732241183823,15.4739565,256.81,256.63,23.776884]
[1732241184608,15.4739565,256.83,256.63,30.80679839]
[1732241184915,15.4739565,256.83,256.65,23.776884]
[1732241185210,15.4739565,256.85,256.65,27.672884]
[1732241185415,136.9,256.84,256.65,27.672884]
[1732241186828,15.4739565,256.83,256.65,27.672884]
[1732241189352,15.4739565,256.83,256.67,3.896]
[1732241189534,15.4739565,256.83,256.68,27.672884]
[1732241190445,15.4739565,256.83,256.66,28.3113]
[1732241190446,15.4739565,256.81,256.67,23.776884]
[1732241190756,9.82920272,256.77,256.67,23.776884]
[1732241190955,9.82920272,256.77,256.66,28.3113]
[1732241192357,9.82920272,256.77,256.67,23.776884]
[1732241192739,15.35680633,256.78,256.67,23.776884]
[1732241193961,15.35680633,256.8,256.67,23.776884]
[1732241194865,136.9,256.79,256.67,23.776884]
[1732241195370,136.9,256.79,256.66,28.3113]
[1732241196151,136.9,256.79,256.67,23.776884]
[1732241200355,152.25680633,256.79,256.67,23.776884]
[1732241200739,15.35680633,256.79,256.67,23.776884]
[1732241201045,15.35680633,256.81,256.67,23.776884]
[1732241202666,15.35680633,256.83,256.67,23.776884]
[1732241202964,136.9,256.82,256.67,23.776884]
[1732241203162,15.35680633,256.83,256.67,23.776884]
[1732241204456,15.35680633,256.81,256.67,23.776884]
[1732241205163,136.9,256.86,256.67,23.776884]
[1732241205164,15.35680633,256.79,256.67,23.776884]
[1732241205645,15.35680633,256.79,256.66,28.3113]
[1732241205844,3.8933,256.85,256.66,28.3113]
[1732241205845,15.35680633,256.75,256.66,28.3113]
[1732241206058,15.35680633,256.77,256.66,28.3113]
[1732241206963,15.35680633,256.79,256.67,23.776884]
[1732241208249,15.35680633,256.81,256.67,23.776884]
[1732241209781,136.9,256.86,256.67,23.776884]
[1732241210089,15.35680633,256.81,256.67,23.776884]
[1732241210463,15.35680633,256.81,256.66,28.3113]
[1732241210677,15.35680633,256.79,256.66,28.3113]
[1732241210984,15.35680633,256.77,256.66,28.3113]
[1732241211565,15.35680633,256.79,256.66,28.3113]
[1732241212486,15.35680633,256.79,256.67,23.776884]
[1732241212785,15.35680633,256.77,256.67,23.776884]
[1732241213164,15.35680633,256.79,256.67,23.776884]
[1732241214467,15.35680633,256.81,256.67,23.776884]
[1732241214666,9.82613381,256.81,256.67,23.776884]
[1732241218168,9.82613381,256.79,256.67,23.776884]
[1732241218695,9.82613381,256.77,256.66,28.3113]
[1732241218903,9.82613381,256.75,256.66,28.3113]
[1732241219782,9.82613381,256.77,256.66,28.3113]
[1732241220371,9.82613381,256.75,256.66,28.3113]
[1732241220578,9.82613381,256.73,256.66,28.3113]
[1732241223197,9.82613381,256.71,256.62,10.9729]
[1732241223505,136.9,256.7,256.68,1.0]
[1732241224711,9.82613381,256.69,256.68,1.0]
[1732241224883,136.9,256.69,256.68,1.0]
[1732241227887,146.72613381,256.76,256.68,1.0]
[1732241228097,136.9,256.75,256.68,1.0]
[1732241229493,9.82613381,256.74,256.68,1.0]
[1732241229687,9.82613381,256.72,256.68,1.0]
[1732241230594,136.9,256.75,256.68,1.0]
[1732241232589,9.82613381,256.74,256.68,1.0]
[1732241232786,9.82613381,256.7,256.68,1.0]
[1732241233008,136.9,256.69,256.68,1.0]
[1732241236895,9.82613381,256.7,256.68,1.0]
[1732241238317,13.72173381,256.7,256.68,1.0]
[1732241238527,20.0,256.69,256.68,1.0]
[1732241239313,22.5,256.69,256.68,1.0]
[1732241239697,46.276884,256.69,256.68,1.0]
[1732241240908,49.17789625,256.69,256.68,1.0]
[1732241241221,49.17789625,256.69,256.47,29.0287]
[1732241241222,11.6036,256.63,256.47,29.0287]
[1732241241420,9.82613381,256.54,256.44,4.6520102]
[1732241241923,9.82613381,256.56,256.44,4.6520102]
[1732241242832,9.82613381,256.54,256.44,4.6520102]
[1732241243012,9.82613381,256.56,256.44,4.6520102]
[1732241243212,28.7802,256.62,256.44,4.6520102]
[1732241243522,9.82613381,256.58,256.44,4.6520102]
[1732241244830,9.82613381,256.56,256.44,4.6520102]
[1732241245040,136.9,256.55,256.44,4.6520102]
[1732241248538,136.9,256.61,256.45,28.73818996]
[1732241248831,136.9,256.61,256.47,23.776884]
[1732241249030,136.9,256.65,256.49,23.776884]
[1732241249232,136.9,256.64,256.5,4.6520102]
[1732241249410,136.9,256.64,256.51,35.029884]
[1732241249619,136.9,256.64,256.53,23.776884]
[1732241249821,136.9,256.67,256.54,4.6520102]
[1732241250006,136.9,256.67,256.55,26.5984]
[1732241250212,136.9,256.66,256.55,26.5984]
[1732241250419,136.9,256.75,256.56,37.28620016]
[1732241250633,136.9,256.74,256.6,23.776884]
[1732241250840,136.9,256.74,256.6,28.4288942]
[1732241251142,136.9,256.74,256.6,32.27740001]
[1732241251435,136.9,256.74,256.6,32.27452021]
[1732241251639,136.9,256.74,256.61,11.253]
[1732241255029,136.9,256.73,256.61,15.9050102]
[1732241257839,15.35873856,256.76,256.61,15.9050102]
[1732241259746,15.35873856,256.74,256.61,15.9050102]
[1732241260839,136.9,256.73,256.61,15.9050102]
[1732241263146,136.9,256.73,256.63,27.341]
[1732241263346,136.9,256.75,256.63,27.341]
[1732241264643,15.35873856,256.72,256.63,27.341]
[1732241265028,15.35873856,256.74,256.63,27.341]
[1732241266857,136.9,256.73,256.63,27.341]
[1732241268728,15.35873856,256.7,256.63,27.341]
[1732241269337,15.35873856,256.68,256.61,11.253]
[1732241269543,15.35873856,256.68,256.57,26.7691]
[1732241270137,136.9,256.67,256.57,26.7691]
[1732241270844,15.35873856,256.68,256.57,26.7691]
[1732241270845,136.9,256.66,256.57,26.7691]
[1732241271147,152.25873856,256.66,256.57,26.7691]
[1732241271351,136.9,256.65,256.57,26.7691]
[1732241272745,136.9,256.64,256.57,26.7691]
[1732241275846,136.9,256.65,256.57,26.7691]
[1732241278094,136.9,256.65,256.58,28.4288942]
[1732241279084,136.9,256.72,256.58,28.4288942]
[1732241280881,9.83750353,256.71,256.58,28.4288942]
[1732241281884,136.9,256.7,256.58,28.4288942]
[1732241282573,136.9,256.7,256.58,4.6520102]
[1732241284977,136.9,256.69,256.58,4.6520102]
[1732241285382,146.73750353,256.69,256.58,4.6520102]
[1732241285901,9.83750353,256.67,256.58,4.6520102]
[1732241287899,136.9,256.66,256.58,4.6520102]
[1732241288201,136.9,256.66,256.57,26.7691]
[1732241288498,9.83750353,256.63,256.57,26.7691]
[1732241288797,9.83750353,256.65,256.57,26.7691]
[1732241289182,136.9,256.66,256.57,26.7691]
[1732241290498,136.9,256.65,256.57,26.7691]
[1732241291123,136.9,256.72,256.57,31.31462901]
[1732241291285,136.9,256.72,256.58,23.776884]
[1732241292589,9.83750353,256.71,256.57,31.31462901]
[1732241292790,9.83750353,256.69,256.57,31.31462901]
[1732241296898,136.9,256.68,256.57,31.31462901]
[1732241298598,136.9,256.68,256.58,28.32241301]
[1732241299719,136.9,256.68,256.58,32.21841301]
[1732241299928,136.9,256.72,256.58,37.17961809]
[1732241300216,136.9,256.72,256.58,33.28361809]
[1732241300525,136.9,256.72,256.6,23.776884]
[1732241300728,136.9,256.72,256.64,23.776884]